bitfinex/quotes_ETHUSD_20230830
["timestamp","ask_amount","ask_price","bid_price","bid_amount"]
[1693366384109,0.101,1720.4,1720.3,3.35348065]
[1693366411602,13.1392,1720.4,1719.9,0.33534806]
[1693366411796,13.1392,1720.4,1720.0,2.87348065]
[1693366411797,18.9518,1720.4,1720.0,2.87348065]
[1693366412097,1.413,1720.1,1720.0,2.87348065]
[1693366413905,5.81332,1720.2,1720.0,2.87348065]
[1693366414509,7.22632,1720.2,1720.0,2.87348065]
[1693366425140,5.81332,1720.2,1720.0,2.87348065]
[1693366425524,7.22632,1720.2,1719.8,0.60862262]
[1693366425776,1.413,1720.0,1719.9,3.35348065]
[1693366426051,1.413,1720.0,1719.9,4.36386601]
[1693366426553,7.22662,1720.1,1719.9,4.36386601]
[1693366426761,7.22662,1720.1,1719.9,3.35348065]
[1693366431656,1.413,1720.0,1719.9,3.35348065]
[1693366431859,1.413,1720.0,1719.9,4.36387563]
[1693366432059,1.413,1720.0,1719.9,3.35348065]
[1693366432264,13.04047,1720.1,1719.9,3.35348065]
[1693366433586,7.22662,1720.1,1719.9,3.35348065]
[1693366435558,0.913,1720.0,1719.9,3.35348065]
[1693366435760,6.72695,1720.0,1719.9,3.35348065]
[1693366440088,5.81395,1720.0,1719.9,3.35348065]
[1693366440383,13.04043,1720.1,1719.9,3.35348065]
[1693366445763,1.413,1720.0,1719.9,3.35348065]
[1693366446108,13.0409,1720.0,1719.9,0.48]
[1693366446421,13.0409,1720.0,1719.8,0.48]
[1693366446562,13.0409,1720.0,1719.8,3.35348065]
[1693366446563,1.413,1719.9,1719.8,3.35348065]
[1693366451329,7.22729,1719.9,1719.8,3.35348065]
[1693366451493,20.159985,1719.9,1719.5,8.78862262]
[1693366451830,20.159985,1719.9,1719.5,11.05348065]
[1693366451993,1.413,1719.6,1719.5,11.05348065]
[1693366452321,7.2283,1719.6,1719.5,11.05348065]
[1693366453380,7.2283,1719.6,1719.5,11.53348065]
[1693366453903,13.04323,1719.7,1719.5,11.53348065]
[1693366455138,1.413,1719.6,1719.5,11.53348065]
[1693366455341,7.2283,1719.6,1719.5,11.53348065]
[1693366479207,1.413,1719.6,1719.5,11.53348065]
[1693366481912,13.0433,1719.7,1719.5,11.53348065]
[1693366486006,7.22809,1719.7,1719.5,11.53348065]
[1693366491127,1.413,1719.7,1719.6,8.99548065]
[1693366491412,8.81366,1720.1,1719.6,10.4859929]
[1693366491640,8.81366,1720.1,1719.7,0.48]
[1693366491641,3.0,1720.0,1719.7,0.48]
[1693366491921,3.0,1720.0,1719.8,2.87348065]
[1693366492213,3.0,1720.0,1719.9,0.48]
[1693366492399,3.0,1720.0,1719.9,3.35348065]
[1693366494708,8.81395,1720.0,1719.9,3.35348065]
[1693366495576,5.81395,1720.0,1719.9,3.35348065]
[1693366495913,5.81366,1720.1,1719.9,3.68882871]
[1693366496112,5.81366,1720.1,1720.0,2.87348065]
[1693366496317,5.81366,1720.1,1720.0,3.35348065]
[1693366499348,11.62742,1720.1,1720.0,3.35348065]
[1693366499542,11.12742,1720.1,1720.0,3.35348065]
[1693366501058,12.54042,1720.1,1719.6,1.52543406]
[1693366501209,1.413,1719.9,1719.7,3.88395688]
[1693366501411,1.413,1719.9,1719.7,2.87348065]
[1693366501627,1.413,1719.9,1719.7,3.22184608]
[1693366502435,1.413,1719.9,1719.8,0.48]
[1693366502637,1.413,1719.9,1719.8,3.35348065]
[1693366509016,7.22729,1719.9,1719.8,3.35348065]
[1693366512169,1.413,1719.9,1719.8,3.35348065]
[1693366521903,16.784,1720.0,1719.8,3.35348065]
[1693366522206,15.2013,1720.0,1719.8,3.35348065]
[1693366532515,15.2013,1720.0,1719.9,0.31815915]
[1693366532688,15.2013,1720.0,1719.9,0.32523978]
[1693366532986,13.0413,1720.0,1719.9,0.32523978]
[1693366533515,13.0413,1720.0,1719.9,0.00708063]
[1693366533819,13.0413,1720.0,1719.8,3.35348065]
[1693366534384,13.0413,1720.0,1719.9,0.31570927]
[1693366534894,13.0413,1720.0,1719.9,0.00705458]
[1693366535109,13.0413,1720.0,1719.9,0.32276385]
[1693366540943,21.72568,1720.0,1719.9,0.32276385]
[1693366541109,24.72568,1720.0,1719.9,0.32276385]
[1693366541308,24.72568,1720.0,1719.9,1e-08]
[1693366541527,24.72568,1720.0,1719.4,1.52400811]
[1693366541837,13.04373,1719.6,1719.5,1.01062562]
[1693366542214,13.04373,1719.6,1719.5,1.32686426]
[1693366542414,13.04373,1719.6,1719.5,1.01062562]
[1693366542745,13.04373,1719.6,1719.5,1.0168962]
[1693366543743,13.04373,1719.6,1719.5,1.33313484]
[1693366544742,13.04373,1719.6,1719.5,1.0168962]
[1693366545201,13.04373,1719.6,1719.5,1.33368563]
[1693366545698,13.04373,1719.6,1719.5,0.32306001]
[1693366547036,7.2283,1719.6,1719.5,0.32306001]
[1693366547820,13.0436,1719.6,1719.5,0.32306001]
[1693366549744,5.8153,1719.6,1719.5,3.19654066]
[1693366549934,11.63037,1719.7,1719.5,3.99619473]
[1693366550248,11.63037,1719.7,1719.6,3.35348065]
[1693366550547,11.63037,1719.7,1719.6,3.67020491]
[1693366550725,11.63037,1719.7,1719.6,3.67647197]
[1693366551956,5.81512,1719.7,1719.6,4.07608457]
[1693366552272,11.6295,1719.8,1719.6,4.07608457]
[1693366558096,5.81466,1719.8,1719.6,4.07608457]
[1693366561740,13.0425,1719.8,1719.6,3.67647197]
[1693366570931,12.5425,1719.8,1719.6,3.67647197]
[1693366572569,11.1295,1719.8,1719.6,3.67647197]
[1693366594627,11.1295,1719.8,1719.7,1.01052713]
[1693366595114,11.1295,1719.8,1719.7,1.32707217]
[1693366595731,11.1295,1719.8,1719.7,1.3333315]
[1693366604930,11.1295,1719.8,1719.7,1.3333315]
[1693366610507,11.1295,1719.8,1719.7,4.20681215]
[1693366610675,11.1295,1719.8,1719.7,4.68681215]
[1693366635674,12.5425,1719.8,1719.7,1.3333315]
[1693366649618,11.1295,1719.8,1719.7,1.3333315]
[1693366652421,11.1295,1719.8,1719.7,0.32280471]
[1693366653450,11.1295,1719.8,1719.7,1.33334978]
[1693366653755,11.1295,1719.8,1719.7,0.32280471]
[1693366654561,11.1295,1719.8,1719.7,1.33334732]
[1693366655456,11.1295,1719.8,1719.7,0.32280471]
[1693366657452,5.31466,1719.8,1719.7,3.19628536]
[1693366657651,5.31466,1719.8,1719.7,4.20682461]
[1693366658969,5.31466,1719.8,1719.7,4.62750707]
[1693366659732,5.31466,1719.8,1719.7,4.20682461]
[1693366664144,5.31466,1719.8,1719.7,4.68682461]
[1693366675099,36.7093,1720.1,1719.7,4.68682461]
[1693366675100,35.79378,1720.1,1719.7,4.68682461]
[1693366675286,5.8131,1720.3,1719.8,12.012804]
[1693366675476,5.8131,1720.3,1719.9,2.82253329]
[1693366675671,5.8131,1720.3,1720.0,4.37024598]
[1693366675901,5.8131,1720.3,1720.0,3.35970673]
[1693366676415,0.101,1720.4,1720.0,6.35970673]
[1693366676587,0.101,1720.4,1720.1,0.63597067]
[1693366676788,0.101,1720.4,1720.2,3.35348065]
[1693366679691,0.101,1720.4,1720.3,0.00620739]
[1693366680030,0.101,1720.4,1720.3,2.87968804]
[1693366680237,0.101,1720.4,1720.3,3.35968804]
[1693366680935,0.101,1720.4,1720.3,3.69565684]
[1693366685202,0.101,1720.4,1720.3,4.00996143]
[1693366693945,1.514,1720.4,1720.3,3.67399263]
[1693366694243,7.3266,1720.4,1720.3,3.67399263]
[1693366695201,1.514,1720.4,1720.3,3.67399263]
[1693366699549,1.014,1720.4,1720.3,3.67399263]
[1693366703414,1.014,1720.4,1720.3,3.54111163]
[1693366703856,1.014,1720.4,1720.3,3.547079]
[1693366710273,7.22527,1720.5,1720.3,3.547079]
[1693366712478,1.413,1720.5,1720.3,3.547079]
[1693366712682,1.413,1720.5,1720.4,0.48]
[1693366712856,1.413,1720.5,1720.4,3.35348065]
[1693366713051,1.413,1720.5,1720.4,3.72003963]
[1693366713978,1.413,1720.5,1720.4,3.72599962]
[1693366714485,7.22526,1720.5,1720.4,3.72599962]
[1693366717072,7.22526,1720.5,1720.4,3.24599962]
[1693366726443,1.413,1720.5,1720.4,3.24599962]
[1693366726592,7.22526,1720.5,1720.4,3.24599962]
[1693366727994,14.45052,1720.5,1720.4,0.37251897]
[1693366728392,14.45052,1720.5,1720.4,0.00595999]
[1693366728894,16.62442,1720.5,1720.1,0.61071364]
[1693366729196,1.413,1720.2,1720.1,3.48419429]
[1693366729397,1.413,1720.2,1720.1,4.49444269]
[1693366729804,1.413,1720.2,1720.1,1.016228]
[1693366730033,2.135611,1720.2,1720.1,1.016228]
[1693366730247,1.6765,1720.4,1720.1,4.25713891]
[1693366730533,13.79863,1720.5,1720.2,3.88376679]
[1693366730534,3.5869,1720.5,1720.2,3.88376679]
[1693366730829,1.413,1720.3,1720.2,3.36624194]
[1693366730993,1.413,1720.3,1720.2,3.88970026]
[1693366731191,1.413,1720.4,1720.2,3.88970026]
[1693366731390,1.413,1720.4,1720.2,2.87945668]
[1693366731591,5.81262,1720.4,1720.2,2.87945668]
[1693366731793,1.413,1720.3,1720.2,0.00597603]
[1693366732457,1.413,1720.3,1720.2,1.01623393]
[1693366736140,1.413,1720.4,1720.2,3.88971458]
[1693366736338,11.0757,1720.5,1720.2,2.87945668]
[1693366737403,1.413,1720.4,1720.2,2.87945668]
[1693366745267,1.413,1720.4,1720.3,0.36625301]
[1693366745467,7.2256,1720.4,1720.3,0.36625301]
[1693366745828,7.2256,1720.4,1720.3,0.37221911]
[1693366765815,1.413,1720.4,1720.3,0.37221911]
[1693366766211,7.2256,1720.4,1720.3,0.37221911]
[1693366770838,6.7256,1720.4,1720.3,0.37221911]
[1693366783859,0.913,1720.4,1720.3,0.37221911]
[1693366785594,0.913,1720.4,1720.3,3.24569976]
[1693366786296,0.913,1720.4,1720.3,3.72569976]
[1693366786666,0.913,1720.4,1720.3,4.09826974]
[1693366790597,6.7256,1720.4,1720.3,0.37221911]
[1693366796806,6.7256,1720.4,1720.3,3.24569976]
[1693366796983,6.7256,1720.4,1720.3,3.72569976]
[1693366799416,6.7256,1720.4,1720.3,3.24569976]
[1693366799910,6.7256,1720.4,1720.3,0.37221911]
[1693366804825,6.7256,1720.4,1720.0,2.87827046]
[1693366804826,13.93329,1720.4,1720.0,0.61071364]
[1693366805034,13.93329,1720.4,1720.1,2.87348065]
[1693366805192,15.46849,1720.4,1720.0,3.48419429]
[1693366805399,15.46849,1720.4,1720.1,1.0102643]
[1693366805718,15.46849,1720.4,1720.1,1.37716964]
[1693366805919,15.46849,1720.4,1720.2,0.0059773]
[1693366809033,15.46849,1720.4,1720.0,3.48419429]
[1693366809235,21.28109,1720.4,1720.1,1.01026484]
[1693366809640,21.28109,1720.4,1720.3,0.36646753]
[1693366810134,21.28109,1720.4,1720.2,0.0059773]
[1693366810837,21.28109,1720.4,1720.0,3.48419429]
[1693366810997,19.886,1720.4,1720.3,0.36646753]
[1693366811198,19.886,1720.4,1720.0,3.48419429]
[1693366811397,19.886,1720.4,1720.1,1.01026495]
[1693366811598,1.413,1720.2,1720.1,1.01026495]
[1693366811825,7.22627,1720.2,1720.1,1.01026495]
[1693366812930,7.22627,1720.2,1720.1,1.01624963]
[1693366819553,7.22627,1720.2,1720.1,4.33977467]
[1693366819886,1.413,1720.3,1720.1,4.33977467]
[1693366820052,1.413,1720.3,1720.1,3.32950972]
[1693366820255,7.22601,1720.3,1720.2,0.3665472]
[1693366820981,7.22601,1720.3,1720.2,0.37252323]
[1693366823016,13.03902,1720.3,1720.2,0.37252323]
[1693366829344,18.85203,1720.3,1720.2,0.37252323]
[1693366829642,21.85203,1720.3,1720.2,0.37252323]
[1693366830103,16.03902,1720.3,1720.2,0.37252323]
[1693366830445,21.85203,1720.3,1720.2,0.37252323]
[1693366830650,21.85203,1720.3,1719.9,0.61071364]
[1693366830808,20.43903,1720.3,1720.2,0.37287428]
[1693366831141,20.43903,1720.3,1719.6,0.61071364]
[1693366831142,21.02178419,1720.3,1719.6,0.61071364]
[1693366831340,21.02178419,1720.3,1719.6,3.48419429]
[1693366831341,1.413,1719.7,1719.6,3.48419429]
[1693366831528,1.413,1719.7,1719.6,4.49469901]
[1693366831841,1.413,1719.7,1719.6,3.89292212]
[1693366832352,7.22796,1719.7,1719.6,3.89292212]
[1693366833540,1.413,1719.7,1719.6,4.3432857]
[1693366834181,1.413,1719.8,1719.6,4.8232857]
[1693366834345,1.413,1719.8,1719.7,2.87348065]
[1693366834982,1.413,1719.8,1719.7,2.88241699]
[1693366836460,13.04193,1719.9,1719.7,3.26369505]
[1693366838094,13.04193,1719.9,1719.7,2.88241699]
[1693366838301,1.413,1719.8,1719.7,2.88241699]
[1693366838462,7.22762,1719.8,1719.7,0.00893634]
[1693366838872,7.22762,1719.8,1719.5,0.61071364]
[1693366839177,1.413,1719.7,1719.6,2.87348065]
[1693366839392,1.413,1719.7,1719.6,3.883953]
[1693366839797,1.413,1719.7,1719.6,3.89289694]
[1693366840722,1.413,1719.7,1719.6,3.89289565]
[1693366840892,7.22796,1719.7,1719.6,1.019415]
[1693366841623,5.81462,1719.8,1719.6,1.019415]
[1693366841828,7.22762,1719.8,1719.6,0.98980437]
[1693366843829,7.22796,1719.8,1719.6,0.98980437]
[1693366846557,5.81496,1719.8,1719.6,0.98980437]
[1693366848461,5.81496,1719.8,1719.7,1.01045704]
[1693366848761,5.81496,1719.8,1719.7,1.01045538]
[1693366849062,5.81496,1719.8,1719.7,1.01939042]
[1693366849912,5.81496,1719.8,1719.7,1.46107268]
[1693366853099,5.81496,1719.8,1719.7,4.33455333]
[1693366856421,5.31496,1719.8,1719.7,4.33455333]
[1693366856599,5.31496,1719.8,1719.7,4.8289276]
[1693366860521,5.31496,1719.8,1719.7,4.33455333]
[1693366867538,12.54292,1719.8,1719.7,1.46107268]
[1693366867710,12.49292,1719.8,1719.7,1.46107268]
[1693366876654,12.49292,1719.8,1719.7,2.07026202]
[1693366879729,11.99292,1719.8,1719.7,2.07026202]
[1693366885686,11.99292,1719.8,1719.7,2.07159313]
[1693366897268,11.99292,1719.8,1719.7,1.46109581]
[1693366915113,10.57992,1719.8,1719.7,1.46109581]
[1693366915409,11.99292,1719.8,1719.7,1.46109581]
[1693366917518,5.81405,1720.0,1719.7,4.33457646]
[1693366917731,5.81405,1720.0,1719.8,1.44393616]
[1693366918013,5.81405,1720.0,1719.8,0.43345765]
[1693366918319,5.81405,1720.0,1719.9,0.49666016]
[1693366918626,14.62818,1720.0,1719.7,2.88241569]
[1693366918924,14.62818,1720.0,1719.9,0.00891854]
[1693366919891,14.62818,1720.0,1719.7,2.87348065]
[1693366920091,14.62818,1720.0,1719.8,1.01047218]
[1693366920420,14.62818,1720.0,1719.7,3.46754305]
[1693366920912,14.62818,1720.0,1719.9,0.49666016]
[1693366921504,14.62818,1720.0,1719.8,0.00892613]
[1693366921818,14.62818,1720.0,1719.9,0.49654464]
[1693366922179,14.62818,1720.0,1719.8,0.00892613]
[1693366924227,14.12818,1720.0,1719.8,0.00892613]
[1693366925339,14.12818,1720.0,1719.9,0.49666016]
[1693366925624,14.12818,1720.0,1719.8,0.00892613]
[1693366926126,14.12818,1720.0,1719.7,5.14767797]
[1693366926340,14.12818,1720.0,1719.8,1.01045012]
[1693366927031,14.12818,1720.0,1719.9,0.00891854]
[1693366927955,14.12818,1720.0,1719.7,5.95219037]
[1693366928231,14.12818,1720.0,1719.8,1.01044605]
[1693366928984,14.12818,1720.0,1719.9,0.00891854]
[1693366929927,14.12818,1720.0,1719.7,5.95219037]
[1693366930133,14.12818,1720.0,1719.8,1.60566436]
[1693366930438,14.12818,1720.0,1719.8,0.59521904]
[1693366930935,14.12818,1720.0,1719.9,0.00891854]
[1693366931866,14.12818,1720.0,1719.7,5.95219037]
[1693366932066,14.12818,1720.0,1719.8,1.01044512]
[1693366933068,14.12818,1720.0,1719.9,0.00891854]
[1693366933826,14.12818,1720.0,1719.7,5.95219037]
[1693366934027,14.12818,1720.0,1719.8,1.60566508]
[1693366934265,14.12818,1720.0,1719.8,0.59521904]
[1693366934438,14.12818,1720.0,1719.7,5.95219037]
[1693366934633,14.12818,1720.0,1719.8,1.01044205]
[1693366934836,8.31405,1720.0,1719.8,3.89284883]
[1693366935036,5.31405,1720.0,1719.9,3.88387266]
[1693366935272,11.62758,1720.1,1719.9,4.33420227]
[1693366935578,11.62758,1720.1,1719.9,3.32381026]
[1693366936075,5.98893967,1720.3,1720.0,0.00891094]
[1693366936235,11.80208967,1720.3,1720.0,3.21566371]
[1693366937773,11.62626,1720.3,1720.0,3.21566371]
[1693366937959,13.03926,1720.3,1720.0,3.21566371]
[1693366939353,13.03926,1720.3,1720.0,2.88239159]
[1693366940003,13.03926,1720.3,1720.1,0.49582299]
[1693366940962,13.03926,1720.3,1720.2,0.00889022]
[1693366941971,13.03926,1720.3,1720.0,2.87348065]
[1693366942495,13.03926,1720.3,1720.1,0.49582299]
[1693366943005,13.03926,1720.3,1720.2,0.00889022]
[1693366944122,13.03926,1720.3,1720.0,2.87348065]
[1693366944397,13.03926,1720.3,1720.0,3.37032168]
[1693366944693,13.03926,1720.3,1720.1,0.49582299]
[1693366944994,13.03926,1720.3,1720.1,0.5047208]
[1693366962283,13.03926,1720.3,1720.1,3.37820145]
[1693366962485,7.22611,1720.3,1720.1,3.37820145]
[1693366962782,7.22611,1720.3,1720.1,3.8687416]
[1693366965354,5.81311,1720.3,1720.1,3.8687416]
[1693366966217,7.22611,1720.3,1720.1,3.8687416]
[1693367007631,7.22611,1720.3,1720.1,3.37820145]
[1693367009763,13.03926,1720.3,1720.1,3.37820145]
[1693367014767,1.413,1720.2,1720.1,0.5047208]
[1693367014973,7.22627,1720.2,1720.1,0.5047208]
[1693367015477,7.22627,1720.2,1720.1,0.00889781]
[1693367015975,7.22627,1720.2,1719.9,0.6099196]
[1693367016159,7.22627,1720.2,1719.9,3.48340025]
[1693367016469,7.22627,1720.2,1720.0,1.50643889]
[1693367016670,7.22627,1720.2,1720.0,0.49610943]
[1693367017049,7.22627,1720.2,1720.1,0.00866554]
[1693367023975,6.72627,1720.2,1720.1,0.00866554]
[1693367029948,6.72627,1720.2,1720.1,0.50444063]
[1693367032090,7.980208,1720.2,1720.1,0.50444063]
[1693367033486,7.980208,1720.2,1720.1,0.00866554]
[1693367033986,6.72627,1720.2,1720.1,0.49577509]
[1693367034185,6.72627,1720.2,1719.9,3.48340025]
[1693367034386,6.72627,1720.2,1720.0,1.01034392]
[1693367034563,1.413,1720.1,1720.0,1.01034392]
[1693367034957,1.413,1720.1,1720.0,1.01900922]
[1693367044993,1.413,1720.1,1720.0,1.51476407]
[1693367045623,7.22661,1720.1,1720.0,1.51476407]
[1693367045827,13.04022,1720.1,1720.0,1.51476407]
[1693367046229,13.04022,1720.1,1720.0,0.50442015]
[1693367046898,13.04022,1720.1,1720.0,0.49575485]
[1693367047086,13.04022,1720.1,1719.7,1.524799]
[1693367047287,1.413,1719.9,1719.8,2.87348065]
[1693367047531,1.413,1719.9,1719.8,4.37995696]
[1693367047992,1.413,1719.9,1719.8,4.38830641]
[1693367048193,7.22729,1719.9,1719.8,4.38830641]
[1693367048894,7.22729,1719.9,1719.8,1.51482576]
[1693367049094,8.531445,1719.9,1719.8,1.51482576]
[1693367050425,7.22729,1719.9,1719.8,1.51482576]
[1693367052517,7.22729,1719.9,1719.8,0.5044142]
[1693367063682,1.413,1719.9,1719.8,0.5044142]
[1693367067297,1.083,1719.9,1719.8,0.5044142]
[1693367073005,6.89729,1719.9,1719.8,0.5044142]
[1693367078708,1.083,1719.9,1719.8,0.5044142]
[1693367088354,1.083,1719.9,1719.8,3.37789485]
[1693367088563,1.083,1719.9,1719.8,3.71568434]
[1693367088953,7.22711,1720.0,1719.8,3.71568434]
[1693367089165,8.03826,1720.2,1719.9,2.87348065]
[1693367089166,7.22636,1720.2,1719.9,2.87348065]
[1693367089706,7.22636,1720.2,1720.0,0.57034071]
[1693367090169,7.22636,1720.2,1720.0,0.57803343]
[1693367093984,13.03982,1720.2,1720.0,0.57803343]
[1693367094581,10.22607,1720.3,1720.1,2.87348065]
[1693367094755,2.0676,1720.4,1720.1,2.87348065]
[1693367094756,13.03877,1720.4,1720.1,2.87348065]
[1693367095085,13.03877,1720.4,1720.2,0.00767623]
[1693367095251,1.413,1720.3,1720.2,0.00767623]
[1693367095451,1.413,1720.3,1720.2,0.35279037]
[1693367095984,1.413,1720.3,1720.2,0.34511414]
[1693367096185,1.413,1720.3,1720.2,0.91501935]
[1693367097061,7.22593,1720.3,1720.2,0.9226995]
[1693367099799,7.22593,1720.3,1720.2,0.35279429]
[1693367100096,7.22593,1720.3,1720.2,0.34511414]
[1693367100945,7.22593,1720.3,1720.1,2.87348065]
[1693367101150,1.413,1720.2,1720.1,2.87348065]
[1693367101934,1.413,1720.2,1720.1,2.88116578]
[1693367102447,1.413,1720.2,1720.1,0.00768513]
[1693367102654,7.22627,1720.2,1720.1,0.00768513]
[1693367103017,7.22627,1720.2,1719.8,0.33778949]
[1693367103311,7.22627,1720.2,1719.9,3.35348065]
[1693367103937,7.22627,1720.2,1720.0,0.00769272]
[1693367104148,7.22627,1720.2,1720.0,2.88117337]
[1693367105253,7.22627,1720.2,1720.1,0.56999698]
[1693367106050,7.22627,1720.2,1720.1,0.57768342]
[1693367115053,1.413,1720.3,1720.1,3.79628048]
[1693367115367,2.1644,1720.4,1720.2,2.87348065]
[1693367115368,1.413,1720.4,1720.2,2.87348065]
[1693367116067,1.413,1720.4,1720.3,0.00766994]
[1693367116942,1.413,1720.4,1720.2,2.87348065]
[1693367117144,7.2256,1720.4,1720.2,2.87348065]
[1693367117339,7.2256,1720.4,1720.3,0.5696875]
[1693367117554,7.2256,1720.4,1720.2,2.87348065]
[1693367117970,1.413,1720.4,1720.3,0.57735333]
[1693367118152,1.413,1720.4,1720.3,3.45083398]
[1693367118357,1.413,1720.4,1720.3,2.88114648]
[1693367118965,1.413,1720.4,1720.3,2.87348065]
[1693367121069,1.413,1720.4,1720.3,3.45057664]
[1693367121256,1.413,1720.4,1720.3,3.7956343]
[1693367121436,7.2256,1720.4,1720.3,3.45057664]
[1693367121836,7.2256,1720.4,1720.3,2.88113995]
[1693367122177,1.413,1720.4,1720.3,2.87348065]
[1693367123057,1.413,1720.4,1720.3,2.88113995]
[1693367123257,1.413,1720.4,1720.3,3.45071523]
[1693367123462,1.413,1720.4,1720.3,3.79578675]
[1693367131965,1.413,1720.4,1720.3,3.79835883]
[1693367132583,1.413,1720.4,1720.3,4.27835883]
[1693367135181,7.2256,1720.4,1720.3,3.45328731]
[1693367138209,6.8956,1720.4,1720.3,3.45328731]
[1693367139309,6.5656,1720.4,1720.3,3.45328731]
[1693367139805,5.8126,1720.4,1720.3,3.45328731]
[1693367150025,11.6252,1720.4,1720.3,0.57980666]
[1693367150225,17.4378,1720.4,1720.3,0.57980666]
[1693367150888,17.4378,1720.4,1720.3,0.56957528]
[1693367151196,17.4378,1720.4,1719.9,3.60826016]
[1693367151395,21.093,1720.4,1720.0,4.36379662]
[1693367151594,21.093,1720.4,1720.3,0.58780044]
[1693367151912,21.093,1720.4,1720.3,0.01023138]
[1693367152115,18.9795,1720.4,1720.3,0.01023138]
[1693367152316,21.093,1720.4,1720.3,0.01023138]
[1693367153131,21.093,1720.4,1720.0,3.35348065]
[1693367154134,21.093,1720.4,1720.1,0.01024687]
[1693367154335,21.093,1720.4,1720.1,2.88372752]
[1693367154739,1.413,1720.2,1720.1,2.88372752]
[1693367154941,7.22627,1720.2,1720.1,2.88372752]
[1693367159619,13.03916,1720.3,1720.1,2.88372752]
[1693367159825,7.22599,1720.3,1720.1,2.88372752]
[1693367165346,5.81299,1720.3,1720.2,3.46150413]
[1693367165555,5.81299,1720.3,1720.2,3.94150413]
[1693367165868,5.81299,1720.3,1720.2,3.46150413]
[1693367166100,7.22599,1720.3,1720.2,3.47174725]
[1693367166406,7.22599,1720.3,1720.2,0.5982666]
[1693367181504,5.81299,1720.3,1720.2,0.5982666]
[1693367199666,5.48299,1720.3,1720.2,0.5982666]
[1693367200986,6.89599,1720.3,1720.2,0.5982666]
[1693367201198,12.70916,1720.3,1720.2,0.5982666]
[1693367231343,6.89599,1720.3,1720.2,0.5982666]
[1693367236779,6.89599,1720.3,1720.2,3.47174725]
[1693367236911,2.41036771,1720.8,1720.2,3.47174725]
[1693367236912,7.49740973,1720.8,1720.2,3.47174725]
[1693367237241,14.72452,1720.7,1720.3,3.35348065]
[1693367237440,14.72452,1720.7,1720.4,0.33534806]
[1693367237741,14.72452,1720.7,1720.4,3.20882871]
[1693367237943,1.413,1720.6,1720.4,3.20882871]
[1693367238148,7.22512,1720.6,1720.4,3.20882871]
[1693367238643,7.22512,1720.6,1720.5,0.68544638]
[1693367239946,7.22512,1720.6,1720.5,0.69566483]
[1693367242449,13.03724,1720.6,1720.5,0.69566483]
[1693367243525,18.84936,1720.6,1720.5,0.69566483]
[1693367244146,18.84936,1720.6,1720.1,4.8832]
[1693367244324,1.413,1720.5,1720.2,2.87348065]
[1693367244532,7.22555,1720.5,1720.2,2.87348065]
[1693367244729,7.22555,1720.5,1720.3,0.6858337]
[1693367245059,7.22555,1720.5,1720.3,0.69606764]
[1693367254248,13.0381,1720.5,1720.3,0.69606764]
[1693367256899,7.22555,1720.5,1720.3,3.56954829]
[1693367257197,5.81235,1720.5,1720.4,2.87348065]
[1693367257600,5.81235,1720.5,1720.4,3.55908748]
[1693367257969,5.81235,1720.5,1720.4,3.56931101]
[1693367258303,11.6247,1720.5,1720.4,3.56931101]
[1693367261618,13.0377,1720.5,1720.4,3.56931101]
[1693367267712,13.0377,1720.5,1720.4,0.69583036]
[1693367270633,11.6247,1720.5,1720.4,0.69583036]
[1693367270802,5.81235,1720.5,1720.4,0.69583036]
[1693367271199,7.22535,1720.5,1720.4,0.69583036]
[1693367273219,13.03761,1720.5,1720.4,0.69583036]
[1693367277234,7.22526,1720.5,1720.4,0.69583036]
[1693367277434,13.03752,1720.5,1720.4,3.56931101]
[1693367284644,5.81226,1720.5,1720.4,3.56931101]
[1693367286049,7.22526,1720.5,1720.4,3.56931101]
[1693367287146,13.03752,1720.5,1720.4,3.56931101]
[1693367292859,13.03752,1720.5,1720.4,0.69583036]
[1693367293518,13.03752,1720.5,1720.4,0.01022353]
[1693367294017,13.03752,1720.5,1720.1,2.17193025]
[1693367294350,7.22582,1720.4,1720.2,3.88369518]
[1693367294558,7.22582,1720.4,1720.2,3.55939151]
[1693367295055,7.22582,1720.4,1720.3,0.00984758]
[1693367295859,5.81226,1720.5,1720.3,2.88332823]
[1693367296032,5.81226,1720.5,1720.4,2.87348065]
[1693367296847,7.22526,1720.5,1720.4,2.87348065]
[1693367297071,7.22526,1720.5,1720.4,2.88295118]
[1693367299070,13.03769,1720.5,1720.4,2.88295118]
[1693367300117,13.03769,1720.5,1720.4,3.56847467]
[1693367304291,13.03769,1720.5,1720.4,0.69499402]
[1693367309115,12.70769,1720.5,1720.4,0.69499402]
[1693367326767,6.89526,1720.5,1720.4,0.69499402]
[1693367331797,12.70769,1720.5,1720.4,0.69499402]
[1693367334589,13.03707,1720.6,1720.4,0.69499402]
[1693367334752,1.413,1720.5,1720.4,0.69499402]
[1693367334951,7.22526,1720.5,1720.4,0.69499402]
[1693367343107,13.03752,1720.5,1720.4,0.69499402]
[1693367343467,13.03752,1720.5,1720.4,0.00947053]
[1693367343664,15.24362,1720.5,1720.4,0.00947053]
[1693367343878,16.87042,1720.5,1720.4,0.00947053]
[1693367344080,16.87042,1720.5,1720.1,2.14104112]
[1693367344277,1.413,1720.3,1720.2,1.0102296]
[1693367344511,1.413,1720.3,1720.2,1.69617367]
[1693367345006,1.413,1720.3,1720.2,1.70566102]
[1693367346231,7.22562,1720.4,1720.2,1.70566102]
[1693367346437,7.22562,1720.4,1720.2,1.33711711]
[1693367349437,7.22562,1720.4,1720.2,0.69543142]
[1693367351934,6.89562,1720.4,1720.2,0.69543142]
[1693367353037,1.413,1720.3,1720.2,0.69543142]
[1693367390739,7.22593,1720.3,1720.2,0.69543142]
[1693367403570,6.89593,1720.3,1720.2,0.69543142]
[1693367406935,1.083,1720.3,1720.2,0.69543142]
[1693367407137,1.413,1720.4,1720.2,3.56891207]
[1693367407361,7.22535,1720.5,1720.3,3.23037186]
[1693367407667,1.413,1720.5,1720.3,3.91612223]
[1693367408073,1.413,1720.5,1720.4,0.00947186]
[1693367409182,1.413,1720.5,1720.3,3.91612223]